fUST/lending_fUST_20250125
["ID","MTS","AMOUNT","RATE_DAILY","PERIOD"]
[350339249,1737803435655,-153.324186,0.00017698,2]
[350339250,1737803435664,-500.0,0.00017698,2]
[350339251,1737803435673,-1263.92,0.00017698,2]
[350339252,1737803435682,-500.0,0.00017698,2]
[350339253,1737803435693,-502.68454924,0.00017698,2]
[350339254,1737803435702,-524.65214033,0.00017698,2]
[350339255,1737803435711,-500.0,0.00017698,2]
[350339256,1737803435720,-151.0,0.00017698,2]
[350339257,1737803435729,-151.0,0.00017698,2]
[350339258,1737803435739,-151.0,0.00017698,2]
[350339259,1737803435747,-151.0,0.00017698,2]
[350339261,1737803435756,-151.0,0.00017698,2]
[350339262,1737803435765,-605.77,0.00017698,2]
[350339264,1737803435774,-500.0,0.00017698,2]
[350339266,1737803435784,-150.78022881,0.00017698,2]
[350339267,1737803435793,-151.0,0.00017698,2]
[350339270,1737803435803,-151.0,0.00017698,2]
[350339272,1737803435812,-500.0,0.00017698,2]
[350339274,1737803435822,-503.55154345,0.00017698,2]
[350339276,1737803435831,-500.0,0.00017698,2]
[350339278,1737803435840,-503.34925608,0.00017698,2]
[350339280,1737803435849,-507.16320565,0.00017698,2]
[350339282,1737803435858,-500.0,0.00017698,2]
[350339284,1737803435868,-657.85,0.00017698,2]
[350339286,1737803435877,-500.0,0.00017698,2]
[350339288,1737803435887,-1062.049284,0.00017698,2]
[350339290,1737803435896,-1062.049284,0.00017698,2]
[350339292,1737803435906,-11736.87,0.00017698,2]
[350339294,1737803435915,-1062.049284,0.00017698,2]
[350339296,1737803435924,-1062.049284,0.00017698,2]
[350339298,1737803435933,-1062.049284,0.00017698,2]
[350339300,1737803435943,-1062.049284,0.00017698,2]
[350339302,1737803435952,-1062.049284,0.00017698,2]
[350339304,1737803435961,-1062.049284,0.00017698,2]
[350339306,1737803435971,-1062.049284,0.00017698,2]
[350339308,1737803435979,-1062.049284,0.00017698,2]
[350339310,1737803435990,-500.0,0.00017698,2]
[350339312,1737803436000,-501.09404817,0.00017698,2]
[350339314,1737803436009,-502.13865002,0.00017698,2]
[350339316,1737803436018,-229.68044973,0.00017698,2]
[350339318,1737803436027,-500.0,0.00017698,2]
[350339320,1737803436037,-503.98543091,0.00017698,2]
[350339322,1737803436046,-508.24048055,0.00017698,2]
[350339324,1737803436054,-2277.21,0.00017698,2]
[350339326,1737803436065,-151.0,0.00017698,2]
[350339328,1737803436075,-500.0,0.00017698,2]
[350339330,1737803436084,-503.9987569,0.00017698,2]
[350339332,1737803436093,-521.13,0.00017698,2]
[350339334,1737803436103,-424.35184481,0.00017698,2]
[350339336,1737803436112,-500.0,0.00017698,2]
[350339338,1737803436122,-502.24466165,0.00017698,2]
[350339340,1737803436132,-502.21173958,0.00017698,2]
[350339342,1737803436141,-492.08208531,0.00017698,2]
[350339344,1737803436152,-500.0,0.00017698,2]
[350339346,1737803436161,-518.61260364,0.00017698,2]
[350339348,1737803436171,-500.0,0.00017698,2]
[350339350,1737803436180,-500.0,0.00017698,2]
[350339352,1737803436190,-502.02405485,0.00017698,2]
[350339354,1737803436200,-1024.18,0.00017698,2]
[350339356,1737803436209,-500.0,0.00017698,2]
[350339358,1737803436219,-151.0,0.00017698,2]
[350339360,1737803436228,-151.0,0.00017698,2]
[350339362,1737803436237,-500.0,0.00017698,2]
[350339364,1737803436247,-151.0,0.00017698,2]
[350339366,1737803436256,-592.56,0.00017698,2]
[350339368,1737803436266,-151.0,0.00017698,2]
[350339370,1737803436276,-500.0,0.00017698,2]
[350339372,1737803436285,-151.0,0.00017698,2]
[350339374,1737803436294,-151.0,0.00017698,2]
[350339376,1737803436304,-151.0,0.00017698,2]
[350339378,1737803436313,-151.0,0.00017698,2]
[350339380,1737803436323,-151.0,0.00017698,2]
[350339382,1737803436332,-151.0,0.00017698,2]
[350339384,1737803436342,-8559.36253946,0.00017698,2]
[350339444,1737803438536,-308.04372222,0.00017697,2]
[350339447,1737803438547,-8751.58938122,0.00017698,2]
[350339449,1737803438559,-470.28604331,0.00017698,2]
[350339451,1737803438571,-3567.14464222,0.00017698,2]
[350339994,1737803446529,-154.0,0.00017557,2]
[350339996,1737803446539,-604.75,0.00017697,2]
[350339998,1737803446549,-241.25,0.00017698,2]
[350340000,1737803446560,-2085.47337309,0.00017698,2]
[350340219,1737803589399,291.29809204,0.00017382,2]
[350340222,1737803721830,226.324,0.0001683,2]
[350340223,1737803815268,267.335694,0.00013973,2]
[350340225,1737804232903,526.33,0.00024,120]
[350340231,1737804366824,216.793,0.0001683,2]
[350340237,1737804498325,6341.41212893,0.000125,2]
[350340238,1737804498374,114.56878784,0.000125,2]
[350340239,1737804498423,41.20754362,0.000125,2]
[350340243,1737804509652,270.40428185,0.00014114,2]
[350340244,1737804511822,276.28784783,0.0001,2]
[350340247,1737804520646,843.90919886,0.00015,2]
[350340248,1737804521468,567.14331759,0.000149,2]
[350340249,1737804521630,1000.0,0.0001,2]
[350340375,1737804638786,-300.0,0.00016999,2]
[350340377,1737804638797,-17055.34770055,0.00017,2]
[350340379,1737804638806,-154.0,0.00017576,2]
[350340381,1737804638815,-154.0,0.00017576,2]
[350340383,1737804638824,-154.0,0.00017576,2]
[350340385,1737804638833,-154.0,0.00017576,2]
[350340387,1737804638842,-154.0,0.00017576,2]
[350340389,1737804638852,-154.0,0.00017576,2]
[350340391,1737804638862,-154.0,0.00017576,2]
[350340393,1737804638872,-154.0,0.00017576,2]
[350340395,1737804638881,-154.0,0.00017576,2]
[350340397,1737804638891,-154.0,0.00017576,2]
[350340399,1737804638900,-154.0,0.00017576,2]
[350340401,1737804638909,-154.0,0.00017576,2]
[350340403,1737804638919,-154.0,0.00017576,2]
[350340405,1737804638928,-154.0,0.00017576,2]
[350340407,1737804638937,-154.0,0.00017576,2]
[350340409,1737804638953,-154.0,0.00017576,2]
[350340411,1737804638963,-161.0,0.00017576,2]
[350340413,1737804638976,-154.0,0.00017576,2]
[350340415,1737804638985,-154.0,0.00017576,2]
[350340434,1737804639148,-1529.87154796,0.00017593,2]
[350340436,1737804639166,-152.0,0.0001766,2]
[350340438,1737804639175,-500.0,0.00017691,2]
[350340440,1737804639184,-500.0,0.00017691,2]
[350340442,1737804639194,-374.90142079,0.00017691,2]
[350340444,1737804639203,-501.13753667,0.00017691,2]
[350340446,1737804639212,-501.44398204,0.00017691,2]
[350340448,1737804639222,-500.0,0.00017691,2]
[350340450,1737804639231,-2318.72,0.00017692,2]
[350340452,1737804639240,-500.0,0.00017692,2]
[350340454,1737804639249,-4048.71,0.00017692,2]
[350340456,1737804639258,-1681.87,0.00017692,2]
[350340458,1737804639267,-1005.29,0.00017692,2]
[350340460,1737804639276,-1939.37,0.00017692,2]
[350340462,1737804639286,-708.03,0.00017692,2]
[350340464,1737804639295,-500.0,0.00017692,2]
[350340466,1737804639304,-500.0,0.00017692,2]
[350340468,1737804639314,-1172.14,0.00017692,2]
[350340470,1737804639330,-500.0,0.00017692,2]
[350340472,1737804639340,-697.04,0.00017692,2]
[350340475,1737804639351,-650.53,0.00017692,2]
[350340477,1737804639361,-1975.12,0.00017692,2]
[350340479,1737804639370,-2858.43,0.00017692,2]
[350340481,1737804639379,-1973.6,0.00017692,2]
[350340483,1737804639389,-500.0,0.00017692,7]
[350340485,1737804639398,-500.0,0.00017692,2]
[350340486,1737804639407,-500.0,0.00017692,2]
[350340487,1737804639416,-960.6,0.00017692,2]
[350340488,1737804639425,-820.83,0.00017692,2]
[350340489,1737804639434,-500.0,0.00017692,2]
[350340490,1737804639443,-2294.43,0.00017692,2]
[350340491,1737804639453,-1316.88,0.00017692,2]
[350340492,1737804639462,-1064.25,0.00017692,2]
[350340493,1737804639471,-500.0,0.00017692,2]
[350340494,1737804639480,-500.01885156,0.00017692,2]
[350340495,1737804639489,-1014.67,0.00017692,2]
[350340496,1737804639498,-615.37,0.00017692,2]
[350340497,1737804639507,-500.0,0.00017692,2]
[350340498,1737804639516,-1252.44,0.00017692,2]
[350340499,1737804639526,-500.0,0.00017692,2]
[350340500,1737804639536,-295.71713814,0.00017692,2]
[350340501,1737804639546,-500.0,0.00017692,2]
[350340502,1737804639554,-500.0,0.00017692,2]
[350340503,1737804639565,-500.0,0.00017693,2]
[350340505,1737804639574,-500.0,0.00017693,2]
[350340507,1737804639584,-714.58,0.00017693,2]
[350340509,1737804639593,-500.0,0.00017693,2]
[350340511,1737804639603,-500.0,0.00017693,2]
[350340513,1737804639613,-907.36,0.00017693,2]
[350340515,1737804639623,-500.0,0.00017693,2]
[350340517,1737804639632,-572.97,0.00017693,2]
[350340519,1737804639641,-606.75,0.00017693,2]
[350340521,1737804639651,-518.17,0.00017693,2]
[350340523,1737804639660,-500.0,0.00017693,2]
[350340525,1737804639669,-500.0,0.00017693,2]
[350340527,1737804639679,-500.0,0.00017693,2]
[350340529,1737804639688,-601.98,0.00017693,2]
[350340531,1737804639698,-500.0,0.00017693,2]
[350340533,1737804639707,-500.0,0.00017693,2]
[350340535,1737804639716,-500.0,0.00017693,2]
[350340537,1737804639725,-708.24,0.00017693,2]
[350340539,1737804639734,-620.8,0.00017693,2]
[350340541,1737804639744,-500.0,0.00017693,2]
[350340544,1737804639753,-867.37,0.00017693,2]
[350340546,1737804639762,-500.0,0.00017693,2]
[350340548,1737804639772,-424.73427458,0.00017693,2]
[350340550,1737804639781,-507.01,0.00017693,2]
[350340552,1737804639790,-509.95,0.00017693,2]
[350340554,1737804639800,-500.0,0.00017693,2]
[350340556,1737804639809,-500.0,0.00017693,2]
[350340558,1737804639818,-500.0,0.00017693,2]
[350340560,1737804639827,-2455.1,0.00017693,2]
[350340562,1737804639836,-500.0,0.00017693,2]
[350340564,1737804639845,-500.0,0.00017693,2]
[350340566,1737804639854,-500.0,0.00017693,2]
[350340568,1737804639863,-500.0,0.00017693,2]
[350340570,1737804639872,-500.0,0.00017693,2]
[350340572,1737804639881,-503.11682474,0.00017693,2]
[350340574,1737804639890,-500.0,0.00017693,2]
[350340576,1737804639900,-591.6,0.00017693,2]
[350340578,1737804639909,-500.0,0.00017693,2]
[350340580,1737804639918,-12115.48,0.00017693,2]
[350340582,1737804639928,-292.75930428,0.00017693,2]
[350340584,1737804639937,-11247.83,0.00017693,2]
[350340586,1737804639946,-500.0,0.00017693,2]
[350340588,1737804639955,-500.0,0.00017693,2]
[350340590,1737804639965,-1211.25,0.00017693,2]
[350340592,1737804639977,-500.0,0.00017693,2]
[350340594,1737804639986,-500.0,0.00017693,2]
[350340596,1737804639995,-580.53,0.00017693,2]
[350340598,1737804640003,-500.0,0.00017693,2]
[350340600,1737804640013,-630.44,0.00017693,2]
[350340602,1737804640023,-714.87,0.00017693,2]
[350340604,1737804640032,-2182.33,0.00017693,2]
[350340606,1737804640041,-500.0,0.00017693,2]
[350340608,1737804640051,-500.0,0.00017693,2]
[350340610,1737804640060,-1002.34,0.00017693,2]
[350340612,1737804640069,-501.4649814,0.00017693,2]
[350340614,1737804640078,-500.0,0.00017693,2]
[350340616,1737804640088,-500.0,0.00017693,2]
[350340618,1737804640097,-500.0,0.00017693,2]
[350340620,1737804640106,-500.0,0.00017693,2]
[350340622,1737804640115,-523.23128029,0.00017693,2]
[350340624,1737804640125,-40812.42,0.00017693,2]
[350340626,1737804640134,-500.0,0.00017693,2]
[350340628,1737804640143,-714.51,0.00017693,2]
[350340630,1737804640152,-500.0,0.00017693,2]
[350340632,1737804640161,-500.0,0.00017693,2]
[350340635,1737804640170,-500.0,0.00017693,2]
[350340637,1737804640180,-500.0,0.00017693,2]
[350340639,1737804640189,-9606.36,0.00017693,2]
[350340641,1737804640198,-500.0,0.00017693,2]
[350340643,1737804640208,-500.0,0.00017693,2]
[350340645,1737804640217,-2219.34,0.00017693,2]
[350340647,1737804640226,-1272.88,0.00017693,2]
[350340649,1737804640236,-1031.3,0.00017693,2]
[350340651,1737804640245,-860.31,0.00017693,2]
[350340653,1737804640254,-151.0,0.00017693,2]
[350340655,1737804640264,-285.7023495,0.00017693,2]
[350340657,1737804640273,-503.05675101,0.00017693,2]
[350340659,1737804640282,-500.0,0.00017693,2]
[350340661,1737804640291,-500.0,0.00017693,2]
[350340663,1737804640300,-517.44,0.00017693,2]
[350340665,1737804640310,-502.75290338,0.00017693,2]
[350340667,1737804640319,-500.0,0.00017693,2]
[350340669,1737804640328,-328.38541043,0.00017693,2]
[350340671,1737804640337,-500.0,0.00017694,2]
[350340673,1737804640347,-500.0,0.00017694,2]
[350340675,1737804640356,-500.0,0.00017694,2]
[350340677,1737804640365,-500.0,0.00017694,2]
[350340679,1737804640375,-910.18,0.00017694,2]
[350340681,1737804640384,-500.0,0.00017694,2]
[350340683,1737804640393,-500.0,0.00017694,2]
[350340685,1737804640402,-500.0,0.00017694,2]
[350340687,1737804640411,-500.0,0.00017694,2]
[350340689,1737804640420,-500.0,0.00017694,2]
[350340691,1737804640429,-500.0,0.00017694,2]
[350340693,1737804640439,-500.0,0.00017694,2]
[350340695,1737804640447,-500.0,0.00017694,2]
[350340697,1737804640456,-500.0,0.00017694,2]
[350340699,1737804640466,-576.54,0.00017694,2]
[350340701,1737804640475,-500.0,0.00017694,2]
[350340703,1737804640485,-500.0,0.00017694,2]
[350340705,1737804640495,-500.0,0.00017694,2]
[350340707,1737804640504,-355.99958589,0.00017694,2]
[350340709,1737804640514,-500.0,0.00017694,2]
[350340711,1737804640523,-476.52236566,0.00017694,2]
[350340713,1737804640532,-372.90622027,0.00017694,2]
[350340715,1737804640542,-502.71138376,0.00017694,2]
[350340717,1737804640551,-500.0,0.00017694,2]
[350340719,1737804640560,-500.0,0.00017694,2]
[350340721,1737804640570,-567.87,0.00017694,2]
[350340723,1737804640579,-503.56297778,0.00017694,2]
[350340725,1737804640588,-500.0,0.00017694,2]
[350340727,1737804640597,-504.16,0.00017694,2]
[350340729,1737804640606,-500.0,0.00017694,2]
[350340731,1737804640615,-500.94965558,0.00017694,2]
[350340733,1737804640625,-502.22409895,0.00017694,2]
[350340735,1737804640634,-502.09879984,0.00017694,2]
[350340737,1737804640644,-491.36618412,0.00017694,2]
[350340739,1737804640653,-594.62838443,0.00017694,2]
[350340741,1737804640662,-501.93434732,0.00017694,2]
[350340743,1737804640672,-502.8295371,0.00017694,2]
[350340745,1737804640682,-505.59170368,0.00017694,2]
[350340747,1737804640691,-503.64295202,0.00017694,2]
[350340749,1737804640701,-500.0,0.00017694,2]
[350340751,1737804640711,-500.0,0.00017694,2]
[350340753,1737804640720,-500.0,0.00017694,2]
[350340755,1737804640730,-506.75427786,0.00017694,2]
[350340757,1737804640739,-504.89016923,0.00017694,2]
[350340759,1737804640749,-500.0,0.00017694,2]
[350340761,1737804640759,-500.0,0.00017694,2]
[350340764,1737804640768,-505.11253532,0.00017694,2]
[350340766,1737804640778,-502.08836052,0.00017694,2]
[350340768,1737804640789,-680.52,0.00017694,2]
[350340770,1737804640799,-503.52430097,0.00017694,2]
[350340772,1737804640808,-504.08372211,0.00017694,2]
[350340774,1737804640817,-503.90568862,0.00017694,2]
[350340776,1737804640827,-984.04,0.00017694,2]
[350340778,1737804640836,-504.59497012,0.00017694,2]
[350340780,1737804640845,-504.16405035,0.00017694,2]
[350340782,1737804640854,-501.14547502,0.00017694,2]
[350340784,1737804640864,-504.4469344,0.00017694,2]
[350340786,1737804640874,-503.97186201,0.00017694,2]
[350340788,1737804640883,-503.30103323,0.00017694,2]
[350340790,1737804640893,-500.0,0.00017694,2]
[350340792,1737804640902,-500.0,0.00017694,2]
[350340794,1737804640912,-504.06860689,0.00017694,2]
[350340796,1737804640921,-503.42239124,0.00017694,2]
[350340798,1737804640930,-504.85462371,0.00017694,2]
[350340800,1737804640940,-505.64658491,0.00017694,2]
[350340802,1737804640949,-501.38928355,0.00017694,2]
[350340804,1737804640959,-500.0,0.00017694,2]
[350340806,1737804640968,-505.19265801,0.00017694,2]
[350340808,1737804640980,-650.59,0.00017694,2]
[350340810,1737804640989,-503.08563254,0.00017694,2]
[350340812,1737804640999,-506.77428336,0.00017694,2]
[350340815,1737804641008,-503.51979671,0.00017694,2]
[350340817,1737804641019,-501.53926724,0.00017694,2]
[350340819,1737804641028,-503.16944459,0.00017694,2]
[350340821,1737804641038,-506.48783927,0.00017694,2]
[350340823,1737804641048,-506.36354718,0.00017694,2]
[350340825,1737804641057,-337.51543125,0.00017694,2]
[350340827,1737804641066,-502.45867713,0.00017694,2]
[350340829,1737804641076,-500.0,0.00017694,2]
[350340831,1737804641085,-500.0,0.00017694,2]
[350340833,1737804641094,-500.0,0.00017694,2]
[350340835,1737804641104,-720.45,0.00017694,2]
[350340837,1737804641113,-503.56203041,0.00017694,2]
[350340839,1737804641122,-501.77742515,0.00017694,2]
[350340840,1737804641131,-500.0,0.00017694,2]
[350340842,1737804641140,-501.70804478,0.00017694,2]
[350340844,1737804641149,-500.0,0.00017694,2]
[350340846,1737804641159,-504.85773139,0.00017694,2]
[350340848,1737804641168,-500.0,0.00017694,2]
[350340850,1737804641177,-163.708846,0.00017694,2]
[350340852,1737804641187,-500.0,0.00017694,2]
[350340854,1737804641196,-500.0,0.00017694,2]
[350340856,1737804641205,-500.0,0.00017694,2]
[350340858,1737804641214,-546.11,0.00017694,2]
[350340860,1737804641223,-500.0,0.00017694,2]
[350340862,1737804641232,-500.0,0.00017694,2]
[350340864,1737804641242,-259.006968,0.00017694,2]
[350340866,1737804641251,-500.0,0.00017694,2]
[350340868,1737804641260,-964.02,0.00017694,2]
[350340870,1737804641270,-500.0,0.00017694,2]
[350340872,1737804641279,-151.0,0.00017694,2]
[350340874,1737804641288,-151.0,0.00017694,2]
[350340876,1737804641297,-151.0,0.00017694,2]
[350340878,1737804641306,-504.0061008,0.00017694,2]
[350340880,1737804641315,-500.0,0.00017694,2]
[350340882,1737804641324,-501.11898917,0.00017694,2]
[350340884,1737804641333,-500.0,0.00017694,2]
[350340886,1737804641342,-1000.0,0.00017694,2]
[350340888,1737804641352,-500.0,0.00017694,2]
[350340889,1737804641361,-531.024642,0.00017694,2]
[350340891,1737804641370,-531.024642,0.00017694,2]
[350340892,1737804641380,-531.024642,0.00017694,2]
[350340894,1737804641390,-531.024642,0.00017694,2]
[350340896,1737804641399,-531.024642,0.00017694,2]
[350340898,1737804641408,-531.024642,0.00017694,2]
[350340900,1737804641417,-500.0,0.00017694,2]
[350340902,1737804641426,-921.65,0.00017694,2]
[350340904,1737804641435,-500.0,0.00017694,2]
[350340906,1737804641444,-500.0,0.00017694,2]
[350340908,1737804641454,-500.0,0.00017694,2]
[350340910,1737804641464,-500.0,0.00017694,2]
[350340912,1737804641473,-500.0,0.00017694,2]
[350340914,1737804641482,-500.0,0.00017694,2]
[350340916,1737804641492,-658.08,0.00017694,2]
[350340918,1737804641501,-501.25702479,0.00017694,2]
[350340920,1737804641510,-500.0,0.00017694,2]
[350340922,1737804641519,-151.0,0.00017694,2]
[350340924,1737804641529,-151.0,0.00017694,2]
[350340926,1737804641538,-151.0,0.00017694,2]
[350340928,1737804641547,-500.0,0.00017694,2]
[350340930,1737804641556,-500.0,0.00017694,2]
[350340932,1737804641565,-500.0,0.00017694,2]
[350340934,1737804641575,-500.0,0.00017694,2]
[350340936,1737804641584,-500.0,0.00017694,2]
[350340938,1737804641594,-151.0,0.00017694,2]
[350340941,1737804641604,-151.0,0.00017694,2]
[350340943,1737804641614,-151.0,0.00017694,2]
[350340945,1737804641623,-500.0,0.00017694,2]
[350340947,1737804641632,-500.0,0.00017694,2]
[350340949,1737804641642,-649.0,0.00017694,2]
[350340951,1737804641651,-500.0,0.00017694,2]
[350340953,1737804641661,-500.0,0.00017694,2]
[350340955,1737804641670,-500.0,0.00017694,2]
[350340957,1737804641679,-500.79257966,0.00017694,2]
[350340959,1737804641688,-568.26,0.00017694,2]
[350340961,1737804641697,-151.0,0.00017695,2]
[350340963,1737804641707,-151.0,0.00017695,2]
[350340965,1737804641716,-151.0,0.00017695,2]
[350340967,1737804641725,-151.0,0.00017695,2]
[350340969,1737804641734,-151.0,0.00017695,2]
[350340971,1737804641743,-151.0,0.00017695,2]
[350340973,1737804641752,-151.0,0.00017695,2]
[350340975,1737804641762,-500.0,0.00017695,2]
[350340977,1737804641772,-250.36,0.00017695,2]
[350340979,1737804641783,-4302.46241004,0.00017696,5]
[350340981,1737804641792,-332.02314113,0.00017696,5]
[350340983,1737804641802,-151.0,0.00017696,2]
[350340985,1737804641812,-500.0,0.00017696,2]
[350340987,1737804641821,-151.0,0.00017696,2]
[350340989,1737804641829,-500.0,0.00017696,2]
[350340991,1737804641840,-608.88,0.00017696,2]
[350340993,1737804641849,-603.32,0.00017696,2]
[350340995,1737804641858,-500.0,0.00017696,2]
[350340998,1737804641868,-151.0,0.00017696,2]
[350340999,1737804641878,-151.0,0.00017696,2]
[350341001,1737804641887,-651.47,0.00017696,2]
[350341003,1737804641896,-500.0,0.00017696,2]
[350341005,1737804641905,-1653.85,0.00017696,2]
[350341007,1737804641914,-500.0,0.00017696,2]
[350341009,1737804641924,-500.0,0.00017696,2]
[350341011,1737804641934,-500.0,0.00017696,2]
[350341013,1737804641943,-500.0,0.00017696,2]
[350341015,1737804641952,-500.0,0.00017696,2]
[350341017,1737804641962,-1661.5,0.00017696,2]
[350341020,1737804641973,-595.89,0.00017696,2]
[350341022,1737804641984,-972.1,0.00017696,2]
[350341024,1737804641993,-503.15642476,0.00017696,2]
[350341025,1737804642003,-151.0,0.00017696,2]
[350341028,1737804642013,-151.0,0.00017696,2]
[350341030,1737804642022,-500.0,0.00017696,2]
[350341032,1737804642031,-721.62,0.00017696,2]
[350341034,1737804642041,-500.0,0.00017696,2]
[350341036,1737804642051,-500.0,0.00017696,2]
[350341038,1737804642061,-863.08,0.00017696,2]
[350341040,1737804642070,-502.48465439,0.00017696,2]
[350341042,1737804642080,-500.0,0.00017696,2]
[350341044,1737804642088,-151.0,0.00017696,2]
[350341046,1737804642098,-151.0,0.00017696,2]
[350341048,1737804642108,-500.0,0.00017696,2]
[350341050,1737804642118,-1778.12,0.00017696,2]
[350341052,1737804642127,-500.0,0.00017696,2]
[350341066,1737804642237,-151.0,0.00017696,2]
[350341068,1737804642260,-546.13,0.00017696,2]
[350341070,1737804642269,-503.27015848,0.00017696,2]
[350341072,1737804642279,-500.0,0.00017696,2]
[350341074,1737804642288,-500.0,0.00017696,2]
[350341076,1737804642297,-500.0,0.00017696,2]
[350341078,1737804642306,-501.06404173,0.00017696,2]
[350341080,1737804642315,-500.0,0.00017696,2]
[350341082,1737804642324,-500.0,0.00017696,2]
[350341084,1737804642333,-500.0,0.00017696,2]
[350341086,1737804642343,-235.17167366,0.00017696,2]
[350341088,1737804642352,-2305.88,0.00017696,2]
[350341091,1737804642361,-151.0,0.00017696,2]
[350341092,1737804642370,-152.46889,0.00017696,2]
[350341095,1737804642381,-531.024642,0.00017696,2]
[350341097,1737804642390,-531.024642,0.00017696,2]
[350341099,1737804642399,-151.0,0.00017696,2]
[350341101,1737804642409,-506.48019941,0.00017697,2]
[350341103,1737804642418,-516.85394751,0.00017697,2]
[350341104,1737804642427,-497.34361056,0.00017697,2]
[350341107,1737804642437,-180.96586757,0.00017697,2]
[350341109,1737804642446,-523.10112318,0.00017697,2]
[350341111,1737804642455,-610.78492585,0.00017697,2]
[350341112,1737804642465,-500.0,0.00017697,2]
[350341114,1737804642474,-500.0,0.00017697,2]
[350341116,1737804642483,-502.14253736,0.00017697,2]
[350341118,1737804642492,-500.0,0.00017697,2]
[350341120,1737804642501,-151.0,0.00017697,2]
[350341122,1737804642511,-500.0,0.00017697,2]
[350341124,1737804642520,-531.024642,0.00017697,2]
[350341126,1737804642530,-531.024642,0.00017697,2]
[350341128,1737804642539,-151.0,0.00017697,2]
[350341130,1737804642549,-501.49447883,0.00017698,2]
[350341132,1737804642558,-501.41957811,0.00017698,2]
[350341134,1737804642567,-501.75822742,0.00017698,2]
[350341136,1737804642576,-500.0,0.00017698,2]
[350341138,1737804642585,-502.8154203,0.00017698,2]
[350341141,1737804642596,-633.19,0.00017698,2]
[350341143,1737804642605,-500.0,0.00017698,2]
[350341145,1737804642614,-500.0,0.00017698,2]
[350341147,1737804642623,-500.0,0.00017698,2]
[350341149,1737804642633,-500.0,0.00017698,2]
[350341151,1737804642643,-782.71,0.00017698,2]
[350341153,1737804642652,-500.0,0.00017698,2]
[350341155,1737804642661,-76.34179479,0.00017698,2]
[350341172,1737804642811,-423.65820521,0.00017698,2]
[350341174,1737804642820,-570.91642804,0.00017698,2]
[350341176,1737804642829,-206.473332,0.00017698,2]
[350341178,1737804642839,-210.092666,0.00017698,2]
[350341180,1737804642850,-185.38376863,0.00017698,2]
[350341187,1737804642911,-345.64087337,0.00017698,2]
[350341189,1737804642920,-531.024642,0.00017698,2]
[350341191,1737804642931,-151.0,0.00017698,2]
[350341193,1737804642940,-151.0,0.000177,2]
[350341195,1737804642950,-151.0,0.000177,2]
[350341197,1737804642960,-3021.78263676,0.0001772,2]
[350341200,1737804642972,-4499.9575024,0.0001772,2]
[350341266,1737804643648,-495.99999994,0.00017692,2]
[350341571,1737804646681,-501.87374234,0.00017691,2]
[350341573,1737804646691,-4.00000006,0.00017692,2]
[350341575,1737804646702,-151.0,0.00017693,2]
[350341577,1737804646711,-151.0,0.00017693,2]
[350341580,1737804646721,-604.35,0.00017693,2]
[350341582,1737804646730,-2478.25986084,0.0001772,2]
[350341584,1737804646739,-151.0,0.00017721,2]
[350341586,1737804646749,-635.542,0.00017725,2]
[350341588,1737804646758,-500.0,0.00017732,2]